bitfinex-derivatives/quotes_SOLF0:USTF0_20251202
["timestamp","ask_amount","ask_price","bid_price","bid_amount"]
[1764711448158,2.99,138.99,138.97,3.18072883]
[1764711448461,2.99,138.99,138.97,0.05072883]
[1764711449164,6.00488385,138.98,138.97,0.05072883]
[1764711450254,2.99,138.98,138.97,0.05072883]
[1764711451959,6.00488385,138.98,138.97,0.05072883]
[1764711453963,6.00488385,138.98,138.92,3.13]
[1764711453964,2.99,138.97,138.91,6.4768]
[1764711454166,2.99,138.95,138.91,3.13]
[1764711455050,2.99,138.95,138.87,100.7826]
[1764711455051,2.97,138.93,138.92,0.04556582]
[1764711455251,3.01823174,138.94,138.92,0.04556582]
[1764711456962,3.01823174,138.94,138.92,6.52216582]
[1764711458063,6.03311559,138.94,138.92,0.04556582]
[1764711458265,2.97,138.93,138.92,0.04556582]
[1764711460664,0.04823174,138.94,138.92,9.79216582]
[1764711460969,3.16823174,138.94,138.92,9.79216582]
[1764711461169,3.16823174,138.94,138.92,6.52216582]
[1764711472169,3.16823174,138.94,138.92,0.04556582]
[1764711472370,3.12,138.93,138.92,0.04556582]
[1764711474571,3.12,138.93,138.88,3.27]
[1764711474873,3.12,138.91,138.88,3.27]
[1764711475280,3.12,138.91,138.88,9.7485]
[1764711475469,3.12,138.91,138.88,3.27]
[1764711475667,3.12,138.91,138.88,3.31619274]
[1764711475872,3.1724812,138.91,138.88,3.31619274]
[1764711476380,3.1724812,138.91,138.89,6.478]
[1764711476880,3.1724812,138.91,138.88,3.31619274]
[1764711478582,24.74760718,138.91,138.88,9.79469274]
[1764711478886,3.1724812,138.91,138.88,9.79469274]
[1764711480981,3.1724812,138.91,138.88,3.31619274]
[1764711483087,24.73033844,138.91,138.88,3.31619274]
[1764711489193,2.98,138.9,138.88,3.31619274]
[1764711490679,2.98,138.9,138.88,0.04619274]
[1764711491392,2.98,138.9,138.83,3.07]
[1764711492292,2.98,138.87,138.85,0.05252659]
[1764711493296,2.98,138.86,138.85,0.05252659]
[1764711496186,6.76122216,138.88,138.85,3.12252659]
[1764711496391,3.03310883,138.88,138.85,3.12252659]
[1764711496994,3.03310883,138.88,138.85,9.60232659]
[1764711498301,3.03310883,138.88,138.86,6.4794]
[1764711506607,3.03310883,138.88,138.86,9.5494]
[1764711509206,0.05310883,138.88,138.87,3.07]
[1764711510816,0.05310883,138.88,138.87,9.549]
[1764711515109,0.05310883,138.88,138.85,0.05252659]
[1764711515110,3.18310883,138.88,138.86,2.99]
[1764711515814,3.18310883,138.88,138.85,6.53222659]
[1764711516022,3.18310883,138.88,138.85,9.52222659]
[1764711516212,3.18310883,138.88,138.86,2.99]
[1764711516920,3.18310883,138.88,138.86,9.4694]
[1764711517817,9.89122216,138.88,138.86,9.4694]
[1764711523225,9.89122216,138.88,138.86,6.4794]
[1764711523226,3.24,138.87,138.86,6.4794]
[1764711523427,3.24,138.87,138.86,9.6494]
[1764711524122,10.00122216,138.88,138.86,9.6494]
[1764711524919,10.00122216,138.88,138.86,3.17]
[1764711525220,3.24,138.87,138.85,3.22252659]
[1764711526528,6.76122216,138.88,138.85,3.22252659]
[1764711526723,0.05310883,138.88,138.85,3.22252659]
[1764711527230,0.05310883,138.88,138.85,9.70242659]
[1764711527423,0.05310883,138.88,138.86,3.17]
[1764711535826,3.29310883,138.88,138.86,9.6494]
[1764711536030,3.29310883,138.88,138.86,3.17]
[1764711536232,3.29310883,138.88,138.85,0.05252659]
[1764711536233,3.24,138.87,138.85,3.22252659]
[1764711539834,9.94811333,138.87,138.85,0.05252659]
[1764711540132,6.76122216,138.88,138.85,3.22252659]
[1764711540331,3.24,138.87,138.85,3.22252659]
[1764711540636,3.24,138.87,138.85,0.05252659]
[1764711540637,3.24,138.86,138.85,0.05252659]
[1764711541436,6.70811333,138.87,138.85,0.05252659]
[1764711541636,6.70811333,138.86,138.85,3.22252659]
[1764711542940,6.76122216,138.88,138.85,3.22252659]
[1764711543740,6.76122216,138.88,138.87,3.17]
[1764711545139,0.05310883,138.88,138.87,9.649]
[1764711551441,6.31187538,138.88,138.87,6.479]
[1764711552648,13.01998871,138.88,138.87,6.479]
[1764711553243,13.01998871,138.88,138.85,3.14252659]
[1764711554052,10.00122216,138.88,138.87,6.479]
[1764711554244,13.01998871,138.88,138.87,6.479]
[1764711555547,13.05254603,138.88,138.87,6.479]
[1764711556757,3.07187538,138.88,138.87,9.569]
[1764711558051,0.05310883,138.88,138.87,9.569]
[1764711566153,3.29310883,138.88,138.87,6.479]
[1764711566363,13.05254603,138.88,138.87,6.479]
[1764711568560,3.24,138.87,138.85,0.05252659]
[1764711568762,6.25876655,138.86,138.85,0.05252659]
[1764711570355,6.25876655,138.86,138.85,6.53242659]
[1764711579867,6.25876655,138.86,138.85,0.05252659]
[1764711583274,12.9989245,138.86,138.85,0.05252659]
[1764711583672,2.97,138.85,138.81,3.0]
[1764711583872,3.01876655,138.83,138.81,3.0]
[1764711584664,3.06905864,138.83,138.81,3.05501451]
[1764711584865,2.97,138.82,138.81,0.05501451]
[1764711585060,6.03905864,138.83,138.81,3.05501451]
[1764711590175,0.05029209,138.83,138.81,3.05501451]
[1764711591579,0.05029209,138.83,138.82,6.4813]
[1764711591776,0.05029209,138.83,138.82,9.4813]
[1764711595683,6.03905864,138.83,138.82,3.0]
[1764711595878,3.06905864,138.83,138.82,3.0]
[1764711596083,6.03905864,138.83,138.81,3.05501451]
[1764711596277,3.06905864,138.83,138.82,9.4813]
[1764711597780,6.03905864,138.83,138.82,9.4813]
[1764711598179,3.06905864,138.83,138.82,9.4813]
[1764711606490,0.05029209,138.83,138.82,9.4813]
[1764711610389,3.08029209,138.83,138.81,6.53681451]
[1764711610589,3.08029209,138.83,138.81,9.64681451]
[1764711610789,0.05029209,138.83,138.81,3.16501451]
[1764711611594,0.05029209,138.83,138.82,6.4813]
[1764711611893,0.05029209,138.83,138.82,9.5913]
[1764711621505,8.93042138,138.89,138.86,3.11]
[1764711621694,8.93042138,138.9,138.86,3.11]
[1764711622404,0.04865762,138.89,138.88,9.5881]
[1764711639805,3.04,138.97,138.94,3.04]
[1764711640506,24.7698093,138.97,138.95,6.4752]
[1764711640705,3.04,138.96,138.95,0.04783341]
[1764711644208,3.04,138.96,138.95,6.52313341]
[1764711645909,21.77780013,138.97,138.96,9.5148]
[1764711646215,9.26940013,138.97,138.96,9.5148]
[1764711646413,0.04799083,138.97,138.96,9.5148]
[1764711648819,0.04799083,138.97,138.96,3.04]
[1764711658323,0.04799083,138.97,138.96,9.5148]
[1764711660918,3.08799083,138.97,138.96,9.5148]
[1764711661121,3.08799083,138.97,138.95,3.08783341]
[1764711661319,0.04799083,138.97,138.95,3.08783341]
[1764711662729,0.04799083,138.97,138.96,9.5148]
[1764711676026,7.24677461,139.01,139.0,6.473]
[1764711678426,2.98,139.0,138.99,6.52107278]
[1764711679741,24.29092193,139.0,138.99,6.52107278]
[1764711682637,24.29092193,139.0,138.99,0.04767278]
[1764711688545,21.31092193,139.0,138.99,3.07767278]
[1764711688847,7.24677461,139.01,138.99,3.07767278]
[1764711689543,2.98,139.0,138.99,0.04767278]
[1764711691847,2.98,139.0,138.99,3.07767278]
[1764711692046,7.24677461,139.01,138.99,3.07767278]
[1764711692942,29.12130772,139.01,138.99,3.07767278]
[1764711693960,29.12130772,139.01,138.99,9.55107278]
[1764711694259,2.98,139.0,138.99,0.04767278]
[1764711695461,2.98,139.0,138.99,3.07767278]
[1764711695757,2.98,139.0,138.99,0.04767278]
[1764711700869,3.21,138.99,138.93,3.01]
[1764711701071,6.22416501,138.96,138.93,3.01]
[1764711701270,6.22416501,138.96,138.95,6.4752]
[1764711702766,3.21,138.96,138.95,6.4752]
[1764711704063,3.21,138.95,138.94,6.52722582]
[1764711704266,3.26056456,138.97,138.95,3.01]
[1764711704962,3.26056456,138.97,138.96,6.4748]
[1764711708769,3.26056456,138.97,138.94,3.06172582]
[1764711709374,3.21,138.96,138.94,3.06172582]
[1764711709574,3.21,138.96,138.94,9.53742582]
[1764711709774,3.21,138.96,138.94,0.05172582]
[1764711709775,6.22416501,138.96,138.94,0.05172582]
[1764711709970,3.21,138.95,138.94,0.05172582]
[1764711711281,3.21,138.95,138.94,3.06172582]
[1764711711765,3.01416501,138.96,138.94,3.06172582]
[1764711712373,6.22416501,138.96,138.94,3.06172582]
[1764711712980,6.22416501,138.96,138.94,9.53742582]
[1764711713778,6.22416501,138.96,138.95,9.4853]
[1764711716582,3.21,138.96,138.95,9.4853]
[1764711716784,6.78383436,138.97,138.95,9.4853]
[1764711716976,9.99383436,138.97,138.96,6.4748]
[1764711717984,3.21,138.96,138.95,6.4753]
[1764711718177,6.22416501,138.96,138.95,6.4753]
[1764711721587,0.05056456,138.97,138.96,9.4848]
[1764711722084,0.05056456,138.97,138.94,0.05172582]
[1764711722085,6.27472957,138.97,138.94,3.06172582]
[1764711722280,0.05056456,138.97,138.96,9.4848]
[1764711738704,0.05056456,138.97,138.95,6.4752]
[1764711738705,3.05056456,138.97,138.95,6.4752]
[1764711738891,9.78383436,138.97,138.95,9.6552]
[1764711739094,3.05056456,138.97,138.95,9.6552]
[1764711740006,9.78383436,138.97,138.95,9.6552]
[1764711741503,3.05056456,138.97,138.95,9.6552]
[1764711742505,9.78383436,138.97,138.95,9.6552]
[1764711742995,6.78383436,138.97,138.96,3.18]
[1764711744507,3.0,138.96,138.95,6.4752]
[1764711745809,3.0,138.96,138.95,9.6552]
[1764711746003,6.78383436,138.97,138.95,9.6552]
[1764711746205,8.248e-05,139.0,138.97,3.18]
[1764711746508,3.0,139.03,138.99,3.18]
[1764711746899,3.0,139.03,139.02,6.472]
[1764711747500,1.29942618,139.04,139.03,9.6516]
[1764711750106,0.04701944,139.04,139.03,9.6516]
[1764711756802,3.01701944,139.04,139.01,0.04829527]
[1764711757002,2.97,139.03,139.01,0.04829527]
[1764711757410,2.97,139.03,138.98,3.13]
[1764711757611,2.97,139.0,138.98,3.13]
[1764711757902,2.97,139.0,138.94,3.13]
[1764711758307,2.97,139.0,138.94,9.6055]
[1764711758510,0.04935756,138.98,138.96,3.17611678]
[1764711758716,3.01935756,138.98,138.96,3.17611678]
[1764711759813,0.04935756,138.98,138.96,3.17611678]
[1764711760206,3.29935756,138.98,138.96,3.17611678]
[1764711761413,3.25,138.97,138.96,0.04611678]
[1764711762708,3.25,138.97,138.93,9.466]
[1764711762909,4.71115844,138.95,138.93,9.466]
[1764711763617,4.71115844,138.95,138.94,2.99]
[1764711764215,7.96115844,138.95,138.93,0.0494316]
[1764711764909,7.96115844,138.95,138.93,3.0394316]
[1764711769824,7.96115844,138.95,138.93,9.5155316]
[1764711771626,3.25,138.94,138.93,0.0494316]
[1764711771812,3.25,138.94,138.88,2.99]
[1764711772019,4.71115844,138.95,138.83,2.99]
[1764711772020,3.25,138.9,138.83,2.99]
[1764711772315,3.25,138.87,138.83,2.99]
[1764711772734,0.05078888,138.86,138.84,0.05264227]
[1764711772912,3.30078888,138.86,138.84,3.04264227]
[1764711773108,3.30078888,138.86,138.84,0.05264227]
[1764711777409,3.25,138.84,138.79,9.4726]
[1764711778017,3.25,138.84,138.8,2.99]
[1764711778212,3.25,138.84,138.8,9.4721]
[1764711778423,0.05419373,138.83,138.81,3.03774853]
[1764711778923,0.05419373,138.83,138.82,2.99]
[1764711782026,24.63905146,138.83,138.81,0.04774853]
[1764711782225,3.25,138.82,138.81,0.04774853]
[1764711782431,0.05419373,138.83,138.81,3.03774853]
[1764711783431,0.05419373,138.83,138.82,2.99]
[1764711784013,0.05419373,138.83,138.82,4.43]
[1764711784428,4.71115844,138.87,138.84,2.99]
[1764711784620,3.25,138.88,138.84,2.99]
[1764711784819,69.52115844,138.9,138.84,2.99]
[1764711785014,69.52115844,138.9,138.86,2.99]
[1764711785229,3.25,138.89,138.86,2.99]
[1764711785425,3.30409695,138.89,138.86,3.04399443]
[1764711786228,24.78301004,138.89,138.87,2.99]
[1764711786526,21.53301004,138.89,138.87,2.99]
[1764711787228,21.53301004,138.89,138.87,9.4688]
[1764711790625,24.80301004,138.89,138.87,9.4688]
[1764711794028,3.27,138.88,138.87,6.4788]
[1764711794225,3.27,138.88,138.86,0.05399443]
[1764711794536,21.53301004,138.89,138.86,0.05399443]
[1764711794537,6.29052472,138.87,138.86,0.05399443]
[1764711795536,27.82353476,138.89,138.87,9.739]
[1764711798042,21.53301004,138.89,138.88,3.26]
[1764711798634,0.05409695,138.89,138.88,3.26]
[1764711800542,3.27,138.96,138.94,9.7355]
[1764711800842,3.02052472,138.97,138.94,3.26]
[1764711801235,3.27,138.98,138.94,3.26]
[1764711801431,3.27,138.98,138.95,9.7351]
[1764711801635,3.31702517,138.97,138.95,9.78856006]
[1764711801946,3.31702517,138.97,138.95,6.52856006]
[1764711803242,3.27,138.96,138.95,0.05346006]
[1764711806845,6.29052472,138.96,138.95,0.05346006]
[1764711808636,3.27,138.96,138.95,0.05346006]
[1764711808842,22.86083906,138.97,138.95,3.31346006]
[1764711809041,21.60791377,138.97,138.95,3.31346006]
[1764711809246,0.04702517,138.97,138.95,3.31346006]
[1764711809441,0.04702517,138.97,138.95,9.78866006]
[1764711809647,0.04702517,138.97,138.96,3.26]
[1764711811249,0.04702517,138.97,138.95,6.52866006]
[1764711811250,0.04702517,138.97,138.95,9.78866006]
[1764711811551,3.31702517,138.97,138.95,9.78866006]
[1764711814148,0.04702517,138.97,138.95,9.78866006]
[1764711814351,0.04702517,138.97,138.96,3.26]
[1764711820253,0.04702517,138.97,138.96,9.7348]
[1764711824157,50.72,139.0,138.97,3.22]
[1764711824464,21.6200025,139.01,138.97,3.22]
[1764711824465,6.12052472,139.04,139.0,3.22]
[1764711824667,3.02052472,139.04,139.01,3.22]
[1764711825250,6.16775626,139.04,139.01,3.26993698]
[1764711825762,6.16775626,139.04,139.03,6.4713]
[1764711826363,28.10442339,139.04,139.03,6.4713]
[1764711834976,28.10442339,139.04,139.01,9.74233698]
[1764711835278,3.1,139.03,139.01,9.74233698]
[1764711842076,25.00442339,139.04,139.01,9.74233698]
[1764711842077,25.00442339,139.04,139.03,3.22]
[1764711842480,0.04723154,139.04,139.03,3.22]
[1764711842777,0.04723154,139.04,139.03,9.6916]
[1764711849676,0.04723154,139.04,139.03,6.4716]
[1764711849882,3.30723154,139.04,139.03,6.4716]
[1764711852589,3.30723154,139.04,139.01,0.04993698]
[1764711852892,6.28052472,139.02,139.01,0.04993698]
[1764711853492,6.32775626,139.04,139.01,3.23993698]
[1764711854088,6.32775626,139.04,139.02,6.472]
[1764711854591,3.26,139.03,139.02,6.472]
[1764711855983,3.26,139.03,139.01,3.23993698]
[1764711859397,3.30723154,139.04,139.01,3.23993698]
[1764711860497,3.30723154,139.04,139.01,0.04993698]
[1764711862182,0.04723154,139.04,139.02,3.19]
[1764711862790,0.04723154,139.04,139.02,9.662]
[1764711862993,0.04723154,139.04,139.03,3.1]
[1764711866597,0.04723154,139.04,139.03,9.5716]
[1764711875708,4.70766924,139.09,139.06,3.1]
[1764711876209,7.84766924,139.09,139.06,3.1]
[1764711876407,3.14,139.08,139.06,3.1]
[1764711876603,3.19472388,139.08,139.06,9.61846676]
[1764711877309,3.19472388,139.08,139.06,3.14836676]
[1764711878410,3.19472388,139.08,139.07,6.4697]
[1764711878708,3.19472388,139.08,139.06,0.04836676]
[1764711879911,13.54839659,139.08,139.06,0.04836676]
[1764711880111,3.05,139.07,139.06,0.04836676]
[1764711880804,3.05,139.06,139.02,6.4717]
[1764711881111,3.05,139.04,139.02,6.4717]
[1764711881309,3.05,139.04,139.03,6.4716]
[1764711885913,3.05,139.04,139.02,0.0462387]
[1764711888419,3.05,139.04,139.02,6.5182387]
[1764711888719,3.05,139.04,139.02,0.0462387]
[1764711889512,12.01393711,139.04,139.02,0.0462387]
[1764711889718,3.05,139.03,139.02,0.0462387]
[1764711906137,9.5216,139.03,139.02,0.0462387]
[1764711909936,3.06,139.0,138.94,3.01]
[1764711910234,3.06,138.98,138.94,3.01]
[1764711911035,3.10987839,138.97,138.95,3.0562598]
[1764711911235,3.10987839,138.97,138.95,3.06474095]
[1764711911426,3.10987839,138.97,138.95,0.05474095]
[1764711912636,3.06,138.96,138.95,0.05474095]
[1764711915339,0.04987839,138.97,138.95,3.06474095]
[1764711916038,3.10987839,138.97,138.95,3.06474095]
[1764711918341,6.12578747,138.97,138.95,3.06474095]
[1764711918638,0.04987839,138.97,138.95,9.53984095]
[1764711918826,0.04987839,138.97,138.96,3.01]
[1764711919229,0.04987839,138.97,138.95,0.05474095]
[1764711919425,6.12578747,138.97,138.95,3.06474095]
[1764711919638,3.06578747,138.97,138.95,3.06474095]
[1764711920634,3.06578747,138.97,138.95,9.54004095]
[1764711920835,3.06578747,138.97,138.95,3.06474095]
[1764711921841,3.06578747,138.97,138.96,6.4748]
[1764711924045,3.06578747,138.97,138.96,9.6148]
[1764711926149,12.01393711,139.02,138.99,3.14]
[1764711926449,6.06590908,139.0,138.97,3.14]
[1764711926857,6.06590908,139.0,138.99,6.4734]
[1764711927047,3.01590908,139.0,138.99,9.6134]
[1764711927855,6.06590908,139.0,138.99,6.4734]
[1764711930652,3.01590908,139.0,138.99,9.6134]
[1764711937152,6.06590908,139.0,138.98,3.19063199]
[1764711938549,6.06590908,139.0,138.98,9.66453199]
[1764711940861,3.08,138.99,138.93,3.01]
[1764711941055,6.09590908,138.96,138.93,3.01]
[1764711941456,3.08,138.95,138.93,3.01]
[1764711941955,3.12564159,138.95,138.93,3.06375691]
[1764711942959,3.12564159,138.95,138.93,9.53995691]
[1764711943160,0.04564159,138.95,138.94,3.01]
[1764711944457,3.12564159,138.95,138.93,3.06375691]
[1764711944854,6.09590908,138.94,138.93,0.05375691]
[1764711960574,6.09590908,138.94,138.89,6.4776]
[1764711960575,3.08,138.93,138.89,9.4876]
[1764711961177,3.08,138.93,138.9,6.4776]
[1764711961576,3.08,138.93,138.9,6.5309939]
[1764711962882,3.08,138.91,138.9,6.5309939]
[1764711963085,6.14211746,138.92,138.9,9.5409939]
[1764711963481,3.08,138.91,138.9,9.5409939]
[1764711964181,6.14211746,138.92,138.9,9.5409939]
[1764711964689,3.08,138.91,138.9,9.5409939]
[1764711964878,3.08,138.91,138.9,6.5309939]
[1764711965784,3.08,138.91,138.9,0.0533939]
[1764711966176,3.08,138.88,138.86,3.01]
[1764711967181,3.12653538,138.88,138.86,3.06515548]
[1764711968688,3.12653538,138.88,138.86,9.54465548]
[1764711969195,25.14033577,138.88,138.86,9.54465548]
[1764711971890,22.06033577,138.88,138.87,9.469]
[1764711975095,0.04653538,138.88,138.87,9.469]
[1764711975584,0.04653538,138.88,138.87,6.479]
[1764711975790,3.18653538,138.88,138.86,0.05515548]
[1764711976596,3.18653538,138.88,138.86,6.53455548]
[1764711976794,25.31261803,138.88,138.86,3.04515548]
[1764711976995,0.04653538,138.88,138.86,3.04515548]
[1764711978592,0.04653538,138.88,138.87,9.469]
[1764711980503,21.39096077,138.88,138.87,9.469]
[1764711985507,24.53096077,138.88,138.87,6.479]
[1764711987109,21.39096077,138.88,138.87,9.469]
[1764711988522,24.53096077,138.88,138.87,6.479]
[1764711995930,3.08,138.87,138.86,0.05515548]
[1764711999727,3.08,138.87,138.82,3.05]
[1764711999728,3.16,138.86,138.82,3.05]
[1764712000828,3.20960376,138.85,138.83,0.0502327]
[1764712004329,3.20960376,138.85,138.83,3.1002327]
[1764712004731,3.20960376,138.85,138.83,0.0502327]
[1764712007928,3.16,138.84,138.79,3.05]
[1764712008535,3.16,138.83,138.77,3.05]
[1764712009043,13.68130959,138.84,138.79,0.0498697]
[1764712009044,3.21408346,138.81,138.79,0.0498697]
[1764712009238,3.16,138.8,138.79,0.0498697]
[1764712009438,3.16,138.8,138.74,3.05]
[1764712010437,3.16,138.8,138.76,0.05399102]
[1764712011341,3.16,138.79,138.76,0.05399102]
[1764712012744,3.16,138.78,138.76,0.05399102]
[1764712013935,3.16,138.78,138.76,3.10399102]
[1764712014137,3.16,138.78,138.76,0.05399102]
[1764712016146,3.16,138.78,138.76,3.10399102]
[1764712016443,3.16,138.78,138.76,0.05399102]
[1764712022657,3.16,138.78,138.76,3.10399102]
[1764712022848,3.16,138.8,138.76,3.10399102]
[1764712023950,0.05408346,138.81,138.76,3.10399102]
[1764712024347,0.05408346,138.81,138.8,3.05]
[1764712038365,3.05,138.87,138.84,6.4801]
[1764712038565,3.05,138.87,138.84,2.99]
[1764712039163,3.05,138.87,138.81,2.99]
[1764712039571,3.05,138.84,138.83,0.04988027]
[1764712040067,3.05,138.84,138.83,6.53078027]
[1764712047381,3.05,138.84,138.83,0.04988027]
[1764712048082,6.07138205,138.84,138.83,0.04988027]
[1764712054687,6.07138205,138.84,138.83,6.53078027]
[1764712057290,6.07138205,138.84,138.83,9.52078027]
[1764712057590,3.02138205,138.84,138.83,9.52078027]
[1764712059793,0.05367149,138.85,138.84,9.6704]
[1764712061486,25.61963558,138.88,138.87,3.19]
[1764712061688,64.56138205,138.9,138.87,3.19]
[1764712061890,67.63138205,138.9,138.87,3.19]
[1764712062488,67.63138205,138.9,138.87,3.23786122]
[1764712062693,67.68587403,138.9,138.88,6.4785]
[1764712062897,3.07,138.89,138.87,3.23786122]
[1764712063687,6.09138205,138.88,138.87,0.04786122]
[1764712064693,89.55401311,138.9,138.87,3.23786122]
[1764712065088,83.46263106,138.9,138.89,3.19]
[1764712065288,83.46263106,138.9,138.88,9.6683]
[1764712065599,86.53263106,138.9,138.88,9.6683]
[1764712066792,83.46263106,138.9,138.89,3.19]
[1764712067799,0.05449198,138.9,138.89,3.19]
[1764712068899,3.12449198,138.9,138.88,9.6683]
[1764712071586,0.05449198,138.9,138.88,9.6683]
[1764712071790,0.05449198,138.9,138.89,3.19]
[1764712080099,3.12449198,138.9,138.89,6.4781]
[1764712080803,0.05449198,138.9,138.89,9.6681]
[1764712081212,0.05449198,138.9,138.89,3.19]
[1764712081813,0.05449198,138.9,138.89,9.6681]
[1764712085708,3.12449198,138.9,138.87,3.23786122]
[1764712085912,3.07,138.88,138.87,0.04786122]
[1764712093610,3.07,138.88,138.83,3.12]
[1764712093810,3.24,138.84,138.8,3.12]
[1764712094521,0.05412577,138.83,138.81,0.05094149]
[1764712094719,0.05412577,138.83,138.81,3.17094149]
[1764712096216,0.05412577,138.83,138.81,9.65264149]
[1764712096421,0.05412577,138.83,138.82,3.12]
[1764712098219,0.05412577,138.83,138.82,9.6013]
[1764712103524,7.96067214,138.87,138.85,9.5997]
[1764712104226,7.96067214,138.87,138.85,6.4797]
[1764712104618,8.01149403,138.87,138.85,6.53139217]
[1764712104930,0.05082189,138.87,138.86,3.12]
[1764712107228,3.29082189,138.87,138.85,3.17169217]
[1764712109028,0.05082189,138.87,138.85,3.17169217]
[1764712111332,3.29082189,138.87,138.85,3.17169217]
[1764712112128,3.29082189,138.87,138.85,0.05169217]
[1764712112333,8.01149403,138.87,138.85,0.05169217]
[1764712112534,3.24,138.86,138.82,3.12]
[1764712112721,3.24,138.85,138.82,3.12]
[1764712113535,3.24,138.85,138.82,3.16549199]
[1764712117023,3.24,138.85,138.82,0.04549199]
[1764712117330,3.05,138.83,138.82,0.04549199]
[1764712117525,3.05,138.83,138.78,3.19]
[1764712117732,3.05,138.82,138.78,3.19]
[1764712118841,3.05,138.82,138.79,0.04691002]
[1764712119234,3.11,138.8,138.79,0.04691002]
[1764712124535,4.77059777,138.81,138.79,3.22691002]
[1764712124736,3.11,138.8,138.79,0.04691002]
[1764712132548,7.88059777,138.81,138.79,3.22691002]
[1764712132845,3.11,138.8,138.79,0.04691002]
[1764712135144,0.04992563,138.81,138.79,3.22691002]
[1764712136649,0.04992563,138.81,138.8,3.18]
[1764712138045,0.04992563,138.81,138.8,9.6623]
[1764712138649,0.04992563,138.81,138.8,3.18]
[1764712138845,3.15992563,138.81,138.79,0.04691002]
[1764712139345,3.15992563,138.81,138.79,3.22691002]
[1764712140956,9.64192563,138.81,138.79,0.04691002]
[1764712141150,3.11,138.8,138.79,0.04691002]
[1764712143852,3.15992563,138.81,138.79,3.22691002]
[1764712144354,0.04992563,138.81,138.79,3.22691002]
[1764712147648,0.04992563,138.81,138.79,9.70961002]
[1764712147843,0.04992563,138.81,138.8,3.18]
[1764712151552,3.08992563,138.81,138.79,0.04691002]
[1764712152050,3.08992563,138.81,138.79,3.10691002]
[1764712155260,3.04,138.8,138.79,0.04691002]
[1764712155759,3.04,138.78,138.76,3.06]
[1764712156357,3.04,138.8,138.76,3.06]
[1764712156752,3.04,138.8,138.77,3.11367548]
[1764712156955,3.08859109,138.8,138.77,3.11367548]
[1764712170075,0.04859109,138.8,138.77,3.11367548]
[1764712170770,3.08859109,138.8,138.77,3.11367548]
[1764712175480,3.08859109,138.8,138.77,0.05367548]
[1764712177378,9.57089109,138.8,138.77,0.05367548]
[1764712177674,3.23,138.79,138.77,0.05367548]
[1764712178577,9.7128,138.79,138.77,0.05367548]
[1764712178979,3.23,138.79,138.77,0.05367548]
[1764712181288,3.23,138.79,138.77,3.28367548]
[1764712188769,3.23,138.79,138.77,0.05367548]
[1764712191588,3.23,138.79,138.77,6.53727548]
[1764712192482,3.08,138.74,138.64,103.97393727]
[1764712192687,6.10303727,138.74,138.66,100.938]
[1764712193084,3.08,138.74,138.67,100.9302]
[1764712193489,0.04797652,138.72,138.69,0.02991537]
[1764712194082,0.04797652,138.72,138.7,6.4868]
[1764712194283,0.04797652,138.72,138.7,7.9268]
[1764712194483,0.04797652,138.72,138.71,3.23]
[1764712195078,61.64,138.75,138.7,7.9268]
[1764712195079,61.64,138.75,138.73,3.23]
[1764712196188,61.69001923,138.75,138.73,3.28116759]
[1764712196388,61.69001923,138.75,138.74,3.23]
[1764712197792,61.69001923,138.75,138.74,4.67]
[1764712197987,0.05001923,138.75,138.74,4.67]
[1764712200400,64.74,138.8,138.77,3.23]
[1764712200600,3.08,138.79,138.77,3.23]
[1764712201285,3.08,138.79,138.77,3.27589942]
[1764712201487,3.13127048,138.79,138.77,3.27589942]
[1764712201794,3.13127048,138.79,138.77,9.75939942]
[1764712204292,0.05127048,138.79,138.78,3.23]
[1764712204895,0.05127048,138.79,138.77,9.75939942]
[1764712205991,61.66,138.8,138.77,9.75939942]
[1764712205992,50.19680288,138.8,138.79,6.4827]
[1764712206196,8.98864578,138.85,138.81,3.23]
[1764712206394,3.08,138.85,138.81,3.23]
[1764712207092,0.05539161,138.84,138.83,6.4804]
[1764712207286,3.13539161,138.84,138.82,0.05471522]